[Event "Titled Tuesday Blitz November 07 Late 2023"]
[White "Silvestre, Christian"]
[Black "Gerbelli Neto, Eduardo"]
[WhiteFideId "30956269"]
[BlackFideId "2103281"]
[WhiteElo "2207"]
[BlackElo "2390"]
[Result "1/2-1/2"]
[Round "5"]
[TimeControl "180+1"]
[Date "2023.11.07"]
[WhiteClock "0:00:07"]
[BlackClock "0:00:13"]
[Board "125"]

1. d4 {[%clk 0:01:49]}  d5 {[%clk 0:02:59]} 2. Nf3 {[%clk 0:01:49]}  Nf6 {[%clk 0:02:59]} 3. Bf4 {[%clk 0:01:49]}  Bf5 {[%clk 0:02:59]} 4. e3 {[%clk 0:01:47]}  e6 {[%clk 0:02:58]} 5. c3 {[%clk 0:01:44]}  Bd6 {[%clk 0:02:45]} 6. Nbd2 {[%clk 0:01:38]}  Bxf4 {[%clk 0:02:44]} 7. exf4 {[%clk 0:01:39]}  O-O {[%clk 0:02:37]} 8. Qb3 {[%clk 0:01:31]}  b6 {[%clk 0:02:10]} 9. Be2 {[%clk 0:01:29]}  c5 {[%clk 0:02:09]} 10. O-O {[%clk 0:01:29]}  Nc6 {[%clk 0:02:07]} 11. Bb5 {[%clk 0:01:25]}  Na5 {[%clk 0:01:59]} 12. Qd1 {[%clk 0:01:23]}  Qc7 {[%clk 0:01:59]} 13. Ne5 {[%clk 0:01:21]}  a6 {[%clk 0:01:56]} 14. Bd3 {[%clk 0:01:17]}  Bxd3 {[%clk 0:01:51]} 15. Nxd3 {[%clk 0:01:18]}  cxd4 {[%clk 0:01:51]} 16. cxd4 {[%clk 0:01:18]}  Nc4 {[%clk 0:01:40]} 17. Rc1 {[%clk 0:01:14]}  Qd6 {[%clk 0:01:40]} 18. Nxc4 {[%clk 0:01:09]}  dxc4 {[%clk 0:01:40]} 19. Rxc4 {[%clk 0:01:09]}  b5 {[%clk 0:01:40]} 20. Rb4 {[%clk 0:01:08]}  Nd5 {[%clk 0:01:35]} 21. Rb3 {[%clk 0:00:56]}  Nxf4 {[%clk 0:01:34]} 22. Nxf4 {[%clk 0:00:56]}  Qxf4 {[%clk 0:01:35]} 23. Rd3 {[%clk 0:00:47]}  Rfd8 {[%clk 0:01:32]} 24. d5 {[%clk 0:00:47]}  Qf5 {[%clk 0:01:23]} 25. d6 {[%clk 0:00:46]}  Rd7 {[%clk 0:01:22]} 26. Qd2 {[%clk 0:00:45]}  Rad8 {[%clk 0:01:22]} 27. Rd1 {[%clk 0:00:45]}  e5 {[%clk 0:01:13]} 28. Rd5 {[%clk 0:00:43]}  f6 {[%clk 0:01:08]} 29. Qa5 {[%clk 0:00:39]}  Qc2 {[%clk 0:00:59]} 30. h3 {[%clk 0:00:33]}  Qc6 {[%clk 0:00:54]} 31. Qa3 {[%clk 0:00:28]}  Kf7 {[%clk 0:00:47]} 32. Qb3 {[%clk 0:00:25]}  Qc4 {[%clk 0:00:43]} 33. Qf3 {[%clk 0:00:19]}  Ke6 {[%clk 0:00:25]} 34. b3 {[%clk 0:00:18]}  Qc2 {[%clk 0:00:22]} 35. Qg4+ {[%clk 0:00:16]}  Qf5 {[%clk 0:00:20]} 36. Qb4 {[%clk 0:00:15]}  Kf7 {[%clk 0:00:18]} 37. Qc5 {[%clk 0:00:15]}  Qe4 {[%clk 0:00:16]} 38. Qc6 {[%clk 0:00:13]}  Qb4 {[%clk 0:00:12]} 39. Rc5 {[%clk 0:00:12]}  Ke6 {[%clk 0:00:10]} 40. Qd5+ {[%clk 0:00:11]}  Kf5 {[%clk 0:00:10]} 41. g4+ {[%clk 0:00:11]}  Kg6 {[%clk 0:00:10]} 42. Qd3+ {[%clk 0:00:10]}  Kf7 {[%clk 0:00:10]} 43. Qd5+ {[%clk 0:00:08]}  Kf8 {[%clk 0:00:10]} 44. Rc6 {[%clk 0:00:06]}  a5 {[%clk 0:00:09]} 45. Qe6 {[%clk 0:00:06]}  a4 {[%clk 0:00:08]} 46. Rdc1 {[%clk 0:00:05]}  Rxd6 {[%clk 0:00:06]} 47. Rxd6 {[%clk 0:00:06]}  Qxd6 {[%clk 0:00:06]} 48. Qxd6+ {[%clk 0:00:06]}  Rxd6 {[%clk 0:00:07]} 49. bxa4 {[%clk 0:00:06]}  bxa4 {[%clk 0:00:07]} 50. Rc4 {[%clk 0:00:07]}  Ra6 {[%clk 0:00:07]} 51. Rb4 {[%clk 0:00:07]}  Kf7 {[%clk 0:00:08]} 52. a3 {[%clk 0:00:08]}  Ke6 {[%clk 0:00:08]} 53. Kf1 {[%clk 0:00:08]}  g6 {[%clk 0:00:09]} 54. Ke2 {[%clk 0:00:09]}  f5 {[%clk 0:00:10]} 55. gxf5+ {[%clk 0:00:09]}  gxf5 {[%clk 0:00:10]} 56. f4 {[%clk 0:00:10]}  e4 {[%clk 0:00:09]} 57. Ke3 {[%clk 0:00:10]}  Kd5 {[%clk 0:00:09]} 58. Rd4+ {[%clk 0:00:10]}  Kc5 {[%clk 0:00:10]} 59. Rb4 {[%clk 0:00:10]}  h5 {[%clk 0:00:09]} 60. h4 {[%clk 0:00:11]}  Rb6 {[%clk 0:00:08]} 61. Rxa4 {[%clk 0:00:10]}  Rb3+ {[%clk 0:00:08]} 62. Ke2 {[%clk 0:00:10]}  Rf3 {[%clk 0:00:08]} 63. Ra5+ {[%clk 0:00:10]}  Kb6 {[%clk 0:00:09]} 64. Rxf5 {[%clk 0:00:11]}  Rxa3 {[%clk 0:00:08]} 65. Rxh5 {[%clk 0:00:10]}  Rh3 {[%clk 0:00:09]} 66. Re5 {[%clk 0:00:10]}  Rxh4 {[%clk 0:00:09]} 67. Rxe4 {[%clk 0:00:11]}  Kc5 {[%clk 0:00:09]} 68. Kf3 {[%clk 0:00:11]}  Kd5 {[%clk 0:00:09]} 69. Re5+ {[%clk 0:00:11]}  Kd6 {[%clk 0:00:10]} 70. Ke4 {[%clk 0:00:12]}  Rh1 {[%clk 0:00:10]} 71. Rd5+ {[%clk 0:00:12]}  Ke6 {[%clk 0:00:10]} 72. Re5+ {[%clk 0:00:13]}  Kf6 {[%clk 0:00:10]} 73. Rf5+ {[%clk 0:00:13]}  Ke6 {[%clk 0:00:10]} 74. Re5+ {[%clk 0:00:13]}  Kf6 {[%clk 0:00:10]} 75. Kf3 {[%clk 0:00:13]}  Rf1+ {[%clk 0:00:10]} 76. Kg3 {[%clk 0:00:13]}  Rg1+ {[%clk 0:00:10]} 77. Kf2 {[%clk 0:00:13]}  Rg4 {[%clk 0:00:11]} 78. Kf3 {[%clk 0:00:12]}  Rg1 {[%clk 0:00:11]} 79. Ra5 {[%clk 0:00:12]}  Rf1+ {[%clk 0:00:12]} 80. Kg3 {[%clk 0:00:12]}  Rg1+ {[%clk 0:00:12]} 81. Kf2 {[%clk 0:00:12]}  Rb1 {[%clk 0:00:12]} 82. Ra3 {[%clk 0:00:09]}  Rb4 {[%clk 0:00:11]} 83. Kf3 {[%clk 0:00:09]}  Rb5 {[%clk 0:00:11]} 84. Rd3 {[%clk 0:00:09]}  Kf5 {[%clk 0:00:11]} 85. Re3 {[%clk 0:00:09]}  Ra5 {[%clk 0:00:11]} 86. Rc3 {[%clk 0:00:09]}  Rb5 {[%clk 0:00:12]} 87. Ra3 {[%clk 0:00:08]}  Rc5 {[%clk 0:00:12]} 88. Rb3 {[%clk 0:00:09]}  Rd5 {[%clk 0:00:12]} 89. Rc3 {[%clk 0:00:09]}  Ra5 {[%clk 0:00:12]} 90. Re3 {[%clk 0:00:08]}  Rb5 {[%clk 0:00:12]} 91. Kg3 {[%clk 0:00:05]}  Rc5 {[%clk 0:00:12]} 92. Kf3 {[%clk 0:00:06]}  Rb5 {[%clk 0:00:12]} 93. Rc3 {[%clk 0:00:06]}  Ra5 {[%clk 0:00:12]} 94. Re3 {[%clk 0:00:07]}  Rb5 {[%clk 0:00:13]} 1/2-1/2


[Site "https://www.chess.com"]

[Event "Titled Tuesday Blitz November 07 Late 2023"]
[White "Tokat, Nehir"]
[Black "Eggleston, Thomas A"]
[WhiteFideId "34557555"]
[BlackFideId "412139"]
[WhiteElo "2190"]
[BlackElo "2370"]
[Result "0-1"]
[Round "5"]
[TimeControl "180+1"]
[Date "2023.11.07"]
[WhiteClock "0:00:05"]
[BlackClock "0:00:06"]
[Board "127"]

1. d4 {[%clk 0:02:35]}  e6 {[%clk 0:02:59]} 2. c4 {[%clk 0:02:32]}  f5 {[%clk 0:02:59]} 3. g3 {[%clk 0:02:30]}  Nf6 {[%clk 0:03:00]} 4. Nf3 {[%clk 0:02:27]}  Bb4+ {[%clk 0:02:59]} 5. Bd2 {[%clk 0:02:27]}  Qe7 {[%clk 0:02:59]} 6. Bg2 {[%clk 0:02:27]}  Bxd2+ {[%clk 0:02:58]} 7. Nbxd2 {[%clk 0:02:28]}  d6 {[%clk 0:02:59]} 8. O-O {[%clk 0:02:28]}  e5 {[%clk 0:02:59]} 9. dxe5 {[%clk 0:02:26]}  dxe5 {[%clk 0:02:59]} 10. e4 {[%clk 0:02:22]}  Nc6 {[%clk 0:02:50]} 11. Re1 {[%clk 0:02:08]}  f4 {[%clk 0:02:50]} 12. gxf4 {[%clk 0:02:05]}  O-O {[%clk 0:02:50]} 13. f5 {[%clk 0:01:56]}  Nh5 {[%clk 0:02:50]} 14. Nxe5 {[%clk 0:01:50]}  Qxe5 {[%clk 0:02:40]} 15. Qxh5 {[%clk 0:01:50]}  Qxb2 {[%clk 0:02:28]} 16. Nf3 {[%clk 0:01:45]}  Bd7 {[%clk 0:02:21]} 17. Rad1 {[%clk 0:01:25]}  Be8 {[%clk 0:02:19]} 18. Qh4 {[%clk 0:01:20]}  h6 {[%clk 0:02:08]} 19. Qg3 {[%clk 0:00:55]}  Qxa2 {[%clk 0:02:08]} 20. e5 {[%clk 0:00:35]}  Rxf5 {[%clk 0:02:05]} 21. Nh4 {[%clk 0:00:33]}  Rg5 {[%clk 0:02:00]} 22. Qf4 {[%clk 0:00:18]}  Bh5 {[%clk 0:01:38]} 23. Rd2 {[%clk 0:00:15]}  Qa5 {[%clk 0:01:24]} 24. Kh1 {[%clk 0:00:15]}  Rg4 {[%clk 0:01:20]} 25. Bd5+ {[%clk 0:00:13]}  Kh8 {[%clk 0:01:19]} 26. Qf5 {[%clk 0:00:12]}  Rxh4 {[%clk 0:01:16]} 27. Rdd1 {[%clk 0:00:11]}  Bxd1 {[%clk 0:01:12]} 28. Rxd1 {[%clk 0:00:11]}  Qc5 {[%clk 0:01:04]} 29. Rg1 {[%clk 0:00:10]}  Qf8 {[%clk 0:00:53]} 30. Qg6 {[%clk 0:00:08]}  Nxe5 {[%clk 0:00:39]} 31. Qg3 {[%clk 0:00:07]}  Rf4 {[%clk 0:00:36]} 32. Qe3 {[%clk 0:00:05]}  Re8 {[%clk 0:00:33]} 33. Qg3 {[%clk 0:00:03]}  g5 {[%clk 0:00:29]} 34. Bxb7 {[%clk 0:00:03]}  Rg4 {[%clk 0:00:19]} 35. Qc3 {[%clk 0:00:02]}  Rxg1+ {[%clk 0:00:17]} 36. Kxg1 {[%clk 0:00:03]}  Qg7 {[%clk 0:00:16]} 37. Qg3 {[%clk 0:00:01]}  Rf8 {[%clk 0:00:16]} 38. Bd5 {[%clk 0:00:01]}  g4 {[%clk 0:00:14]} 39. Be4 {[%clk 0:00:01]}  Nf3+ {[%clk 0:00:14]} 40. Kg2 {[%clk 0:00:01]}  h5 {[%clk 0:00:13]} 41. h3 {[%clk 0:00:01]}  gxh3+ {[%clk 0:00:12]} 42. Kxh3 {[%clk 0:00:02]}  Qxg3+ {[%clk 0:00:12]} 43. Kxg3 {[%clk 0:00:02]}  Ng5 {[%clk 0:00:11]} 44. Bd5 {[%clk 0:00:02]}  Kg7 {[%clk 0:00:10]} 45. f4 {[%clk 0:00:03]}  Nh7 {[%clk 0:00:09]} 46. Be4 {[%clk 0:00:02]}  Nf6 {[%clk 0:00:08]} 47. Bc6 {[%clk 0:00:03]}  Rd8 {[%clk 0:00:08]} 48. Kh4 {[%clk 0:00:03]}  Rd6 {[%clk 0:00:08]} 49. Bf3 {[%clk 0:00:02]}  a5 {[%clk 0:00:07]} 50. Kg5 {[%clk 0:00:02]}  a4 {[%clk 0:00:08]} 51. Bd1 {[%clk 0:00:03]}  Ra6 {[%clk 0:00:06]} 52. Bb3 {[%clk 0:00:04]}  axb3 {[%clk 0:00:06]} 53. c5 {[%clk 0:00:03]}  b2 {[%clk 0:00:06]} 54. c6 {[%clk 0:00:04]}  b1=Q {[%clk 0:00:06]} 55. f5 {[%clk 0:00:05]}  Qg1+ {[%clk 0:00:06]} 56. Kh4 {[%clk 0:00:05]}  Qg4# {[%clk 0:00:06]} 0-1


[Site "https://www.chess.com"]

[Event "Titled Tuesday Blitz November 07 Late 2023"]
[White "Skaric, Djuro"]
[Black "Ismayilova, Khanim"]
[WhiteFideId "934569"]
[BlackFideId "13429019"]
[WhiteElo "2360"]
[BlackElo "2168"]
[Result "1-0"]
[Round "5"]
[TimeControl "180+1"]
[Date "2023.11.07"]
[WhiteClock "0:02:19"]
[BlackClock "0:00:59"]
[Board "128"]

1. g3 {[%clk 0:03:00]}  d5 {[%clk 0:02:56]} 2. Bg2 {[%clk 0:03:01]}  Nf6 {[%clk 0:02:56]} 3. d3 {[%clk 0:03:01]}  c5 {[%clk 0:02:55]} 4. h3 {[%clk 0:03:02]}  Nc6 {[%clk 0:02:54]} 5. Nf3 {[%clk 0:03:02]}  e6 {[%clk 0:02:39]} 6. O-O {[%clk 0:03:03]}  Bd6 {[%clk 0:02:39]} 7. Nc3 {[%clk 0:03:02]}  O-O {[%clk 0:02:40]} 8. e4 {[%clk 0:03:01]}  d4 {[%clk 0:02:33]} 9. Ne2 {[%clk 0:03:00]}  e5 {[%clk 0:02:33]} 10. Ne1 {[%clk 0:02:59]}  Be6 {[%clk 0:02:33]} 11. f4 {[%clk 0:02:57]}  Qc8 {[%clk 0:02:32]} 12. f5 {[%clk 0:02:57]}  Bd7 {[%clk 0:02:32]} 13. g4 {[%clk 0:02:57]}  c4 {[%clk 0:02:31]} 14. Rf2 {[%clk 0:02:57]}  b5 {[%clk 0:02:26]} 15. Bf1 {[%clk 0:02:56]}  cxd3 {[%clk 0:02:21]} 16. cxd3 {[%clk 0:02:56]}  Nb4 {[%clk 0:02:17]} 17. Ng3 {[%clk 0:02:54]}  Qc7 {[%clk 0:01:50]} 18. g5 {[%clk 0:02:51]}  Ne8 {[%clk 0:01:50]} 19. Bd2 {[%clk 0:02:47]}  f6 {[%clk 0:01:43]} 20. g6 {[%clk 0:02:42]}  hxg6 {[%clk 0:01:36]} 21. fxg6 {[%clk 0:02:40]}  Qc8 {[%clk 0:01:32]} 22. Qh5 {[%clk 0:02:36]}  Rf7 {[%clk 0:01:15]} 23. gxf7+ {[%clk 0:02:35]}  Kf8 {[%clk 0:01:16]} 24. fxe8=Q+ {[%clk 0:02:34]}  Bxe8 {[%clk 0:01:15]} 25. Qh8+ {[%clk 0:02:31]}  Kf7 {[%clk 0:01:14]} 26. Nh5 {[%clk 0:02:27]}  Bf8 {[%clk 0:01:11]} 27. Nxf6 {[%clk 0:02:23]}  Ke6 {[%clk 0:00:59]} 28. h4 {[%clk 0:02:19]} 1-0


[Site "https://www.chess.com"]

[Event "Titled Tuesday Blitz November 07 Late 2023"]
[White "Fernandez Bustamante, Leancy B."]
[Black "Powell, Paul"]
[WhiteFideId "3523870"]
[BlackFideId "2005840"]
[WhiteElo "2334"]
[BlackElo "2083"]
[Result "1-0"]
[Round "5"]
[TimeControl "180+1"]
[Date "2023.11.07"]
[WhiteClock "0:01:29"]
[BlackClock "0:00:03"]
[Board "133"]

1. e4 {[%clk 0:03:00]}  c5 {[%clk 0:02:56]} 2. Nf3 {[%clk 0:03:00]}  d6 {[%clk 0:02:55]} 3. c3 {[%clk 0:03:00]}  Nf6 {[%clk 0:02:54]} 4. h3 {[%clk 0:03:00]}  g6 {[%clk 0:02:52]} 5. Bd3 {[%clk 0:03:00]}  Bg7 {[%clk 0:02:52]} 6. Bc2 {[%clk 0:03:01]}  O-O {[%clk 0:02:52]} 7. O-O {[%clk 0:03:02]}  Nc6 {[%clk 0:02:50]} 8. Re1 {[%clk 0:03:02]}  a6 {[%clk 0:02:48]} 9. d4 {[%clk 0:03:03]}  cxd4 {[%clk 0:02:47]} 10. cxd4 {[%clk 0:03:04]}  Bd7 {[%clk 0:02:34]} 11. Nc3 {[%clk 0:03:04]}  Rc8 {[%clk 0:02:33]} 12. Bg5 {[%clk 0:03:00]}  b5 {[%clk 0:02:27]} 13. a3 {[%clk 0:02:56]}  h6 {[%clk 0:02:17]} 14. Bf4 {[%clk 0:02:54]}  Na5 {[%clk 0:02:07]} 15. Bd3 {[%clk 0:02:41]}  Nc4 {[%clk 0:02:00]} 16. Bxc4 {[%clk 0:02:40]}  Rxc4 {[%clk 0:01:57]} 17. Rc1 {[%clk 0:02:39]}  Re8 {[%clk 0:01:52]} 18. Qd2 {[%clk 0:02:33]}  Kh7 {[%clk 0:01:51]} 19. e5 {[%clk 0:02:32]}  dxe5 {[%clk 0:01:23]} 20. Nxe5 {[%clk 0:02:31]}  Be6 {[%clk 0:01:09]} 21. Nxc4 {[%clk 0:02:28]}  Bxc4 {[%clk 0:01:08]} 22. Be5 {[%clk 0:02:25]}  e6 {[%clk 0:01:02]} 23. Ne4 {[%clk 0:02:20]}  Bd5 {[%clk 0:00:53]} 24. Nd6 {[%clk 0:02:11]}  Re7 {[%clk 0:00:37]} 25. Rc8 {[%clk 0:02:03]}  Qd7 {[%clk 0:00:37]} 26. Rec1 {[%clk 0:02:00]}  Ne4 {[%clk 0:00:34]} 27. Nxe4 {[%clk 0:01:58]}  Bxe4 {[%clk 0:00:31]} 28. R1c7 {[%clk 0:01:50]}  Qd5 {[%clk 0:00:31]} 29. Rxe7 {[%clk 0:01:42]}  Bxe5 {[%clk 0:00:29]} 30. Rxf7+ {[%clk 0:01:40]}  Bg7 {[%clk 0:00:29]} 31. Qf4 {[%clk 0:01:32]}  Qxd4 {[%clk 0:00:17]} 32. Rxg7+ {[%clk 0:01:30]}  Kxg7 {[%clk 0:00:03]} 33. Rc7+ {[%clk 0:01:29]} 1-0


[Site "https://www.chess.com"]

[Event "Titled Tuesday Blitz November 07 Late 2023"]
[White "KorolDimitriy75"]
[Black "Sailer, Mike"]
[BlackFideId "2012901"]
[WhiteElo "2333"]
[BlackElo "2076"]
[Result "1-0"]
[Round "5"]
[TimeControl "180+1"]
[Date "2023.11.07"]
[WhiteClock "0:00:06"]
[BlackClock "0:00:18"]
[Board "134"]

1. d4 {[%clk 0:03:00]}  d5 {[%clk 0:02:58]} 2. c4 {[%clk 0:03:01]}  Bf5 {[%clk 0:02:58]} 3. Nc3 {[%clk 0:03:00]}  e6 {[%clk 0:02:58]} 4. e3 {[%clk 0:02:57]}  Nc6 {[%clk 0:02:51]} 5. a3 {[%clk 0:02:53]}  Nf6 {[%clk 0:02:51]} 6. Nf3 {[%clk 0:02:50]}  Be7 {[%clk 0:02:50]} 7. Bd3 {[%clk 0:02:50]}  Bxd3 {[%clk 0:02:45]} 8. Qxd3 {[%clk 0:02:51]}  dxc4 {[%clk 0:02:45]} 9. Qxc4 {[%clk 0:02:51]}  O-O {[%clk 0:02:46]} 10. O-O {[%clk 0:02:50]}  Na5 {[%clk 0:02:46]} 11. Qa4 {[%clk 0:02:34]}  c5 {[%clk 0:02:40]} 12. dxc5 {[%clk 0:02:28]}  Nd5 {[%clk 0:02:09]} 13. Nxd5 {[%clk 0:02:18]}  exd5 {[%clk 0:02:08]} 14. b4 {[%clk 0:02:09]}  Bf6 {[%clk 0:02:08]} 15. Rb1 {[%clk 0:02:06]}  Nc4 {[%clk 0:02:06]} 16. Rd1 {[%clk 0:01:57]}  a5 {[%clk 0:01:50]} 17. Qb3 {[%clk 0:01:30]}  axb4 {[%clk 0:01:46]} 18. axb4 {[%clk 0:01:31]}  Re8 {[%clk 0:01:33]} 19. h3 {[%clk 0:01:16]}  g6 {[%clk 0:01:09]} 20. Qd3 {[%clk 0:00:43]}  Ra4 {[%clk 0:00:56]} 21. Qxd5 {[%clk 0:00:36]}  Qxd5 {[%clk 0:00:54]} 22. Rxd5 {[%clk 0:00:37]}  Rea8 {[%clk 0:00:44]} 23. Bd2 {[%clk 0:00:15]}  Ra1 {[%clk 0:00:40]} 24. Rxa1 {[%clk 0:00:14]}  Rxa1+ {[%clk 0:00:40]} 25. Kh2 {[%clk 0:00:14]}  Rb1 {[%clk 0:00:36]} 26. e4 {[%clk 0:00:10]}  Nxd2 {[%clk 0:00:36]} 27. Rxd2 {[%clk 0:00:08]}  Rxb4 {[%clk 0:00:37]} 28. e5 {[%clk 0:00:08]}  Be7 {[%clk 0:00:36]} 29. Rd7 {[%clk 0:00:08]}  Bxc5 {[%clk 0:00:35]} 30. Ng5 {[%clk 0:00:07]}  Bxf2 {[%clk 0:00:34]} 31. Nxf7 {[%clk 0:00:07]}  Be3 {[%clk 0:00:33]} 32. e6 {[%clk 0:00:06]}  Bf4+ {[%clk 0:00:33]} 33. Kg1 {[%clk 0:00:07]}  Bg3 {[%clk 0:00:33]} 34. Nh6+ {[%clk 0:00:06]}  Kf8 {[%clk 0:00:32]} 35. Rf7+ {[%clk 0:00:06]}  Ke8 {[%clk 0:00:32]} 36. Kf1 {[%clk 0:00:05]}  Rb1+ {[%clk 0:00:32]} 37. Ke2 {[%clk 0:00:05]}  Rb2+ {[%clk 0:00:32]} 38. Kf3 {[%clk 0:00:06]}  Bd6 {[%clk 0:00:31]} 39. Rxh7 {[%clk 0:00:06]}  Rb3+ {[%clk 0:00:30]} 40. Ke4 {[%clk 0:00:05]}  Rb4+ {[%clk 0:00:29]} 41. Kd5 {[%clk 0:00:06]}  Bf4 {[%clk 0:00:28]} 42. Ng4 {[%clk 0:00:05]}  Rb5+ {[%clk 0:00:28]} 43. Ke4 {[%clk 0:00:05]}  Rb4+ {[%clk 0:00:28]} 44. Kd5 {[%clk 0:00:05]}  Rb5+ {[%clk 0:00:28]} 45. Kc4 {[%clk 0:00:05]}  Rb1 {[%clk 0:00:26]} 46. Nf6+ {[%clk 0:00:05]}  Kd8 {[%clk 0:00:25]} 47. e7+ {[%clk 0:00:06]}  Kc7 {[%clk 0:00:18]} 48. e8=Q+ {[%clk 0:00:06]} 1-0


[Site "https://www.chess.com"]

[Event "Titled Tuesday Blitz November 07 Late 2023"]
[White "Ardila, Oscar Humberto"]
[Black "Bongo Akanga Ndjila, Barthelemy"]
[WhiteFideId "4404742"]
[BlackFideId "10609431"]
[WhiteElo "2323"]
[BlackElo "2020"]
[Result "1-0"]
[Round "5"]
[TimeControl "180+1"]
[Date "2023.11.07"]
[WhiteClock "0:01:27"]
[BlackClock "0:00:15"]
[Board "136"]

1. d4 {[%clk 0:02:59]}  d5 {[%clk 0:02:57]} 2. c4 {[%clk 0:02:59]}  e6 {[%clk 0:02:47]} 3. Nc3 {[%clk 0:02:59]}  Nf6 {[%clk 0:02:46]} 4. Nf3 {[%clk 0:02:58]}  Bb4 {[%clk 0:02:16]} 5. Qc2 {[%clk 0:02:57]}  Ne4 {[%clk 0:02:08]} 6. Nd2 {[%clk 0:02:54]}  Nxd2 {[%clk 0:02:06]} 7. Bxd2 {[%clk 0:02:53]}  dxc4 {[%clk 0:02:06]} 8. e3 {[%clk 0:02:53]}  Bxc3 {[%clk 0:01:59]} 9. Bxc3 {[%clk 0:02:51]}  b5 {[%clk 0:01:59]} 10. a4 {[%clk 0:02:52]}  c6 {[%clk 0:01:58]} 11. b3 {[%clk 0:02:50]}  cxb3 {[%clk 0:01:57]} 12. Qxb3 {[%clk 0:02:50]}  O-O {[%clk 0:01:41]} 13. axb5 {[%clk 0:02:49]}  cxb5 {[%clk 0:01:41]} 14. Bxb5 {[%clk 0:02:48]}  a6 {[%clk 0:01:34]} 15. Bd3 {[%clk 0:02:48]}  Bd7 {[%clk 0:01:33]} 16. O-O {[%clk 0:02:47]}  Nc6 {[%clk 0:01:32]} 17. Rxa6 {[%clk 0:02:45]}  Rxa6 {[%clk 0:01:27]} 18. Bxa6 {[%clk 0:02:45]}  Ne7 {[%clk 0:01:27]} 19. Ra1 {[%clk 0:02:39]}  Qc7 {[%clk 0:01:26]} 20. Ba5 {[%clk 0:02:38]}  Qc6 {[%clk 0:01:22]} 21. Qb6 {[%clk 0:02:34]}  Qe4 {[%clk 0:01:15]} 22. Bb7 {[%clk 0:02:24]}  Nd5 {[%clk 0:01:13]} 23. Qd6 {[%clk 0:02:18]}  Bc8 {[%clk 0:01:12]} 24. Bxd5 {[%clk 0:02:02]}  exd5 {[%clk 0:01:10]} 25. Bb4 {[%clk 0:02:01]}  Re8 {[%clk 0:01:07]} 26. Qc6 {[%clk 0:01:54]}  Bf5 {[%clk 0:00:48]} 27. h3 {[%clk 0:01:51]}  Rc8 {[%clk 0:00:42]} 28. Qb7 {[%clk 0:01:45]}  h5 {[%clk 0:00:37]} 29. Bd6 {[%clk 0:01:38]}  Qc2 {[%clk 0:00:26]} 30. Bg3 {[%clk 0:01:34]}  g6 {[%clk 0:00:24]} 31. Qe7 {[%clk 0:01:33]}  Qb2 {[%clk 0:00:20]} 32. Ra7 {[%clk 0:01:30]}  Be6 {[%clk 0:00:17]} 33. Qf6 {[%clk 0:01:28]}  Qb1+ {[%clk 0:00:16]} 34. Kh2 {[%clk 0:01:29]}  Qb6 {[%clk 0:00:16]} 35. Be5 {[%clk 0:01:27]}  Qxa7 {[%clk 0:00:15]} 36. Qg7# {[%clk 0:01:27]} 1-0


[Site "https://www.chess.com"]

[Event "Titled Tuesday Blitz November 07 Late 2023"]
[White "Martinez, Shawn"]
[Black "katharinareinecke"]
[WhiteFideId "2039770"]
[WhiteElo "2327"]
[BlackElo "1926"]
[Result "1-0"]
[Round "5"]
[TimeControl "180+1"]
[Date "2023.11.07"]
[WhiteClock "0:00:25"]
[BlackClock "0:00:01"]
[Board "145"]

1. e4 {[%clk 0:03:00]}  c6 {[%clk 0:02:51]} 2. d4 {[%clk 0:03:00]}  d5 {[%clk 0:02:36]} 3. exd5 {[%clk 0:03:01]}  cxd5 {[%clk 0:02:35]} 4. Bd3 {[%clk 0:03:01]}  Nc6 {[%clk 0:02:35]} 5. c3 {[%clk 0:03:01]}  Qc7 {[%clk 0:02:36]} 6. h3 {[%clk 0:03:00]}  Nf6 {[%clk 0:02:36]} 7. Nf3 {[%clk 0:03:01]}  g6 {[%clk 0:02:36]} 8. O-O {[%clk 0:03:00]}  Bg7 {[%clk 0:02:36]} 9. Re1 {[%clk 0:03:01]}  Bf5 {[%clk 0:02:36]} 10. Bf1 {[%clk 0:03:00]}  O-O {[%clk 0:02:35]} 11. Nbd2 {[%clk 0:02:59]}  a6 {[%clk 0:02:33]} 12. Nb3 {[%clk 0:02:59]}  b6 {[%clk 0:02:26]} 13. Ne5 {[%clk 0:02:59]}  Nxe5 {[%clk 0:02:24]} 14. dxe5 {[%clk 0:02:50]}  Ne4 {[%clk 0:02:20]} 15. f4 {[%clk 0:02:46]}  Rfd8 {[%clk 0:02:09]} 16. Be3 {[%clk 0:02:41]}  Nc5 {[%clk 0:02:03]} 17. Nd4 {[%clk 0:02:37]}  Be4 {[%clk 0:01:59]} 18. Qg4 {[%clk 0:02:35]}  e6 {[%clk 0:01:58]} 19. Qh4 {[%clk 0:02:32]}  Nd3 {[%clk 0:01:51]} 20. Bxd3 {[%clk 0:02:27]}  Bxd3 {[%clk 0:01:52]} 21. Qg4 {[%clk 0:02:17]}  b5 {[%clk 0:01:46]} 22. Bf2 {[%clk 0:02:10]}  b4 {[%clk 0:01:40]} 23. cxb4 {[%clk 0:02:07]}  Qb7 {[%clk 0:01:34]} 24. a3 {[%clk 0:01:59]}  Rdc8 {[%clk 0:01:33]} 25. Rac1 {[%clk 0:01:57]}  Rxc1 {[%clk 0:01:33]} 26. Rxc1 {[%clk 0:01:57]}  Rc8 {[%clk 0:01:33]} 27. Qd1 {[%clk 0:01:55]}  Be4 {[%clk 0:01:22]} 28. Nb3 {[%clk 0:01:46]}  Bh6 {[%clk 0:01:19]} 29. Be3 {[%clk 0:01:41]}  Rxc1 {[%clk 0:01:04]} 30. Qxc1 {[%clk 0:01:40]}  d4 {[%clk 0:01:03]} 31. Nxd4 {[%clk 0:01:07]}  Bxg2 {[%clk 0:01:00]} 32. h4 {[%clk 0:00:56]}  Bh3 {[%clk 0:00:45]} 33. Qc6 {[%clk 0:00:52]}  Qe7 {[%clk 0:00:40]} 34. Nf3 {[%clk 0:00:44]}  Bg4 {[%clk 0:00:38]} 35. Qc8+ {[%clk 0:00:44]}  Kg7 {[%clk 0:00:37]} 36. Bc5 {[%clk 0:00:40]}  Qxc5+ {[%clk 0:00:14]} 37. Qxc5 {[%clk 0:00:33]}  Bxf3 {[%clk 0:00:14]} 38. Qe3 {[%clk 0:00:33]}  Bd5 {[%clk 0:00:13]} 39. a4 {[%clk 0:00:33]}  Bc4 {[%clk 0:00:13]} 40. Qd4 {[%clk 0:00:31]}  Be2 {[%clk 0:00:12]} 41. Kf2 {[%clk 0:00:31]}  Bd1 {[%clk 0:00:09]} 42. b5 {[%clk 0:00:30]}  axb5 {[%clk 0:00:09]} 43. axb5 {[%clk 0:00:30]}  Bb3 {[%clk 0:00:06]} 44. b6 {[%clk 0:00:29]}  Bd5 {[%clk 0:00:06]} 45. Ke3 {[%clk 0:00:26]}  Kf8 {[%clk 0:00:05]} 46. Qxd5 {[%clk 0:00:25]}  exd5 {[%clk 0:00:05]} 47. b7 {[%clk 0:00:25]}  Bxf4+ {[%clk 0:00:05]} 48. Kxf4 {[%clk 0:00:25]}  Ke7 {[%clk 0:00:04]} 49. b8=Q {[%clk 0:00:25]}  d4 {[%clk 0:00:01]} 50. Qd6+ {[%clk 0:00:25]} 1-0


[Site "https://www.chess.com"]